bitfinex/quotes_ETHUSD_20241215
["timestamp","ask_amount","ask_price","bid_price","bid_amount"]
[1734304696931,0.02455224,3911.5,3911.0,2.55687]
[1734304697186,0.7897,3911.7,3911.0,2.55687]
[1734304697396,0.02453151,3911.4,3910.7,0.55]
[1734304697570,0.7897,3911.7,3910.6,0.12946603]
[1734304697752,0.02451078,3911.3,3910.6,0.12946603]
[1734304697952,0.7897,3911.7,3910.6,0.12946603]
[1734304698269,0.02449004,3911.2,3911.0,2.55687]
[1734304698470,0.7897,3911.7,3911.0,2.55689]
[1734304698672,0.7897,3911.7,3910.8,3.0]
[1734304699045,0.02457297,3911.6,3910.8,3.0]
[1734304700248,0.02457297,3911.6,3910.8,2.55701]
[1734304700651,0.02457297,3911.6,3910.9,2.55695]
[1734304701174,0.7897,3911.7,3910.9,2.55695]
[1734304701473,0.02455224,3911.5,3910.9,2.55695]
[1734304701673,0.02457297,3911.6,3910.6,3.12946603]
[1734304701875,0.02453151,3911.4,3910.6,0.12946603]
[1734304702075,0.7897,3911.7,3910.6,0.12946603]
[1734304702274,0.02483578,3911.3,3910.6,3.12946603]
[1734304702590,0.02481504,3911.2,3910.6,3.12946603]
[1734304702732,0.35091869,3911.6,3910.6,3.12946603]
[1734304702939,0.02479431,3911.1,3910.6,3.12946603]
[1734304703174,0.35091869,3911.6,3910.6,3.12946603]
[1734304703379,0.7696,3910.9,3909.9,0.7643]
[1734304703564,0.7696,3910.9,3909.6,2.5578]
[1734304703752,0.0247321,3910.8,3909.6,2.5578]
[1734304704172,0.0247321,3910.8,3909.9,2.55758]
[1734304704797,0.0247321,3910.8,3910.0,2.55754]
[1734304705994,0.0247321,3910.8,3909.7,0.12856912]
[1734304705995,0.0247321,3910.8,3909.8,2.55766]
[1734304706201,0.0247321,3910.8,3909.7,0.12856912]
[1734304706564,0.5196,3910.9,3909.7,3.12856912]
[1734304706873,0.5196,3910.9,3910.1,2.55744]
[1734304706874,0.02425504,3910.8,3910.1,2.55744]
[1734304707071,0.5196,3910.9,3910.1,2.55744]
[1734304707508,0.1631169,3911.9,3910.9,2.55694]
[1734304707668,0.02425504,3910.8,3910.4,0.8291]
[1734304707873,0.1631169,3911.9,3911.1,2.55682]
[1734304708197,0.02446236,3911.8,3911.1,2.55682]
[1734304708416,0.02446236,3911.8,3911.3,2.55666]
[1734304708788,0.1631169,3911.9,3911.0,2.12730464]
[1734304708983,0.1631169,3911.9,3911.5,2.55656]
[1734304709377,0.1631169,3911.9,3911.0,4.68419464]
[1734304709378,0.1631169,3911.9,3911.6,2.55646]
[1734304710208,0.1631169,3911.9,3911.2,0.7912]
[1734304710410,0.1631169,3911.9,3911.7,2.55643]
[1734304711203,0.1631169,3911.9,3911.2,4.33873246]
[1734304711204,0.1631169,3911.9,3911.5,2.55654]
[1734304711409,0.1631169,3911.9,3911.4,2.55662]
[1734304711907,0.1631169,3911.9,3911.2,1.33873246]
[1734304712125,0.1631169,3911.9,3911.4,2.12730464]
[1734304712308,0.1631169,3911.9,3911.8,2.55636]
[1734304719546,0.1631169,3911.9,3911.5,0.40160371]
[1734304719748,0.7729,3911.8,3910.9,3.0]
[1734304719944,0.7729,3911.8,3911.3,3.0]
[1734304720149,0.7729,3911.8,3911.3,2.55669]
[1734304720486,0.1631169,3911.9,3911.4,3.0]
[1734304721557,0.1631169,3911.9,3911.0,4.68414464]
[1734304721785,0.1631169,3911.9,3911.1,3.55]
[1734304721990,0.02536912,3911.8,3910.8,0.7806]
[1734304722177,3.31623,3911.7,3910.4,3.38167]
[1734304722345,3.31623,3911.7,3910.2,2.24519086]
[1734304722346,0.37520302,3911.6,3910.2,2.37068195]
[1734304722546,0.7598,3911.3,3909.9,0.32200541]
[1734304722789,2.55691,3911.0,3909.8,2.12730464]
[1734304723087,0.33391931,3910.9,3909.8,4.68497464]
[1734304723286,0.35910185,3910.9,3909.8,2.12730464]
[1734304723522,0.02518254,3910.9,3910.4,2.55728]
[1734304723651,0.7598,3911.1,3910.4,2.55728]
[1734304723851,0.7598,3911.1,3910.2,2.94020464]
[1734304724053,0.02462158,3911.0,3910.3,0.55]
[1734304724249,0.02462158,3911.0,3910.4,2.55727]
[1734304724487,0.02462158,3911.0,3910.3,4.15475946]
[1734304724649,0.7799,3911.5,3910.3,4.15475946]
[1734304724650,0.7799,3911.5,3910.7,2.12730464]
[1734304724851,0.776823,3911.5,3910.7,3.0]
[1734304725085,0.02470451,3911.4,3910.8,2.55701]
[1734304725271,0.02470451,3911.4,3910.5,0.55]
[1734304725272,0.776823,3911.5,3910.9,2.812631]
[1734304725472,0.02468378,3911.3,3910.9,2.55693]
[1734304725671,0.02470451,3911.4,3910.9,2.55693]
[1734304725855,0.776823,3911.5,3910.9,2.55693]
[1734304726054,0.02468378,3911.3,3910.9,2.55693]
[1734304726250,0.02470451,3911.4,3910.9,2.55693]
[1734304726475,0.776823,3911.5,3910.6,2.5571]
[1734304726680,0.776823,3911.5,3910.7,3.0]
[1734304726681,0.02468378,3911.3,3910.7,3.0]
[1734304726867,0.776823,3911.5,3910.7,3.0]
[1734304727076,0.776823,3911.5,3910.5,1.80626407]
[1734304727279,0.776823,3911.5,3910.6,3.0]
[1734304727553,0.02470451,3911.4,3910.6,4.30955282]
[1734304727754,0.776823,3911.5,3910.6,4.30955282]
[1734304727954,0.02468378,3911.3,3910.6,4.30955282]
[1734304728157,0.776823,3911.5,3910.6,4.30955282]
[1734304728357,0.02466304,3911.2,3910.6,4.30955282]
[1734304728654,0.776823,3911.5,3910.6,4.30955282]
[1734304728896,0.02248311,3911.4,3910.2,4.03536448]
[1734304729071,0.02248311,3911.4,3909.9,6.75559361]
[1734304729072,0.7799,3911.3,3909.9,1.03536448]
[1734304729405,2.55696,3910.9,3909.9,0.52713402]
[1734304729556,2.55696,3910.9,3909.8,0.12515901]
[1734304729755,0.0245801,3910.8,3909.8,0.12515901]
[1734304730296,0.0245801,3910.8,3909.8,3.12515901]
[1734304730508,0.0245801,3910.8,3909.9,1.2336259]
[1734304730656,2.55696,3910.9,3909.8,4.1650185]
[1734304730857,2.55696,3910.9,3909.9,1.23359119]
[1734304731056,0.0245801,3910.8,3909.8,4.1650185]
[1734304731398,0.7799,3911.0,3909.9,1.23358357]
[1734304731601,0.02455936,3910.7,3909.9,1.05446733]
[1734304731772,0.7799,3911.0,3909.7,4.03536448]
[1734304731773,0.02248311,3910.9,3909.7,4.03536448]
[1734304731968,2.57944311,3910.9,3909.8,1.23387151]
[1734304732280,0.0245801,3910.8,3909.7,4.03536448]
[1734304732488,0.0245801,3910.8,3909.8,2.2614712]
[1734304732663,0.0245801,3910.8,3909.9,1.23411961]
[1734304732864,0.0245801,3910.8,3910.0,2.55754]
[1734304733068,0.7799,3911.0,3910.0,2.55754]
[1734304733291,0.7799,3911.0,3910.1,0.40649248]
[1734304733497,0.02401373,3910.9,3910.1,0.40649248]
[1734304733697,0.02401373,3910.9,3910.6,2.55713]
[1734304733904,0.7549,3911.7,3910.6,2.55713]
[1734304734340,0.02413789,3911.6,3910.6,2.55713]
[1734304734484,0.7549,3911.7,3910.7,0.65924945]
[1734304734682,0.02393342,3911.6,3910.7,0.65924945]
[1734304734935,0.02393342,3911.6,3910.4,4.03536448]
[1734304734936,0.02248311,3911.5,3910.4,3.0]
[1734304735133,0.02248311,3911.5,3910.3,3.16266912]
[1734304735134,0.8062,3911.4,3910.3,3.0]
[1734304735444,0.8062,3911.4,3910.1,1.44185696]
[1734304735445,0.8062,3911.0,3910.1,0.40649248]
[1734304735590,0.8062,3911.0,3909.9,2.12730464]
[1734304735790,0.02378829,3910.9,3909.9,2.12730464]
[1734304736391,0.02378829,3910.9,3910.0,1.23347066]
[1734304736589,0.02378829,3910.9,3910.1,3.79078199]
[1734304736844,0.02378829,3910.9,3909.9,3.16266912]
[1734304736845,0.8062,3911.0,3910.2,0.69534511]
[1734304737022,0.8062,3911.0,3910.3,2.55733]
[1734304737489,0.8062,3911.0,3910.2,0.69534511]
[1734304739290,0.8062,3911.0,3910.3,3.79055562]
[1734304739619,0.8062,3911.0,3910.4,2.55726]
[1734304739801,0.8062,3911.0,3910.4,2.98605696]
[1734304740643,0.8062,3911.0,3910.4,0.42879696]
[1734304740940,0.02378829,3910.9,3909.9,1.03536448]
[1734304741240,0.8062,3911.0,3909.9,1.23342257]
[1734304741450,0.8062,3911.0,3910.1,2.55747]
[1734304741873,0.8062,3911.0,3910.2,0.02557177]
[1734304742025,0.7906,3911.8,3910.7,2.12730464]
[1734304742355,0.7906,3911.8,3911.5,2.55652]
[1734304742504,0.1631169,3911.9,3911.6,2.55647]
[1734304742700,0.1631169,3911.9,3911.8,2.55636]
[1734304743333,0.1631169,3911.9,3911.6,3.0]
[1734304743538,0.1631169,3911.9,3911.4,4.0519283]
[1734304743748,0.1631169,3911.9,3911.5,0.83619151]
[1734304744056,0.1631169,3911.9,3911.8,3.37316]
[1734304744275,0.1631169,3911.9,3911.8,7.75929203]
[1734304744562,0.1631169,3911.9,3911.8,9.01324207]
[1734304744737,0.1631169,3911.9,3911.8,10.06517037]
[1734304745323,0.1631169,3911.9,3911.8,9.01324207]
[1734304745524,0.03754592,3911.9,3911.8,14.05047278]
[1734304745726,1.28655051,3913.2,3912.7,2.55577]
[1734304745999,0.775,3913.2,3912.6,3.0]
[1734304746130,0.775,3913.2,3912.6,3.910588]
[1734304746491,0.775,3913.2,3912.4,3.0]
[1734304746987,0.775,3913.2,3911.8,4.2058311]
[1734304746988,0.775,3913.2,3911.8,1.05022614]
[1734304747144,0.79758311,3913.1,3911.6,3.0]
[1734304747347,0.7812,3912.8,3911.7,4.90195512]
[1734304747672,0.7812,3912.8,3911.7,1.90195512]
[1734304747834,3.33692,3912.8,3911.7,1.90195512]
[1734304748235,0.7812,3912.8,3911.7,1.90195512]
[1734304748435,3.33694,3912.8,3911.8,1.46080216]
[1734304748677,0.02248311,3912.7,3911.8,1.46080216]
[1734304748878,3.33694,3912.8,3911.8,1.46080216]
[1734304749045,0.7812,3912.8,3911.8,1.46080216]
[1734304749253,0.03347787,3912.7,3911.8,1.46080216]
[1734304749783,0.7812,3912.8,3911.8,1.46080216]
[1734304749965,0.8222,3912.6,3911.1,4.05022614]
[1734304750131,0.8222,3912.6,3911.2,2.08854128]
[1734304750328,0.8222,3912.6,3911.3,0.61387674]
[1734304750632,2.55605,3912.3,3911.3,0.61387674]
[1734304751188,0.85564679,3912.6,3911.4,3.39201413]
[1734304751189,0.8222,3912.6,3911.4,3.39201413]
[1734304751478,0.8222,3912.6,3911.4,2.55659]
[1734304751692,0.8222,3912.6,3911.3,0.55]
[1734304751829,0.8222,3912.6,3911.5,2.55655]
[1734304752024,0.8222,3912.6,3911.4,0.21502261]
[1734304752387,0.7899,3911.6,3910.6,1.05022614]
[1734304752532,0.7899,3911.6,3910.6,3.14034674]
[1734304752893,0.7899,3911.6,3910.7,1.63949784]
[1734304753099,0.7899,3911.6,3910.7,0.8034496]
[1734304753607,0.7899,3911.6,3910.6,2.55714]
[1734304753745,0.7899,3911.6,3910.7,3.83632132]
[1734304753942,0.7899,3911.6,3910.8,0.8362738]
[1734304754145,0.7899,3911.6,3911.0,2.55685]
[1734304754400,0.7561,3912.0,3911.4,3.0]
[1734304754608,0.7561,3912.0,3911.4,2.55662]
[1734304754896,0.7561,3912.0,3910.9,1.05022614]
[1734304754897,0.7561,3912.0,3911.7,3.0]
[1734304755043,2.55572,3912.8,3911.7,3.0]
[1734304755044,0.7509,3912.4,3911.7,3.0]
[1734304755520,0.824,3913.0,3912.0,0.55]
[1734304755796,1.58345989,3914.5,3912.0,0.55]
[1734304755797,0.824,3913.5,3912.8,2.55568]
[1734304756579,0.824,3913.5,3912.8,2.55569]
[1734304756783,0.824,3913.5,3912.8,2.811259]
[1734304757594,0.824,3913.5,3912.8,0.255569]
[1734304757757,0.824,3913.5,3912.9,2.55563]
[1734304758296,0.8258,3914.6,3912.8,3.55]
[1734304758480,0.8258,3914.6,3913.4,2.55531]
[1734304759005,0.03426401,3914.5,3913.4,2.55531]
[1734304759299,0.8258,3914.6,3913.4,0.255531]
[1734304759594,0.8258,3914.6,3913.4,2.55532]
[1734304759595,0.0311491,3914.5,3913.4,2.55532]
[1734304759798,0.8258,3914.6,3913.4,2.55532]
[1734304759995,0.02399035,3914.4,3913.4,2.55532]
[1734304760337,0.02401105,3914.5,3913.5,0.555532]
[1734304760498,0.02396965,3914.3,3913.6,2.55518]
[1734304760658,0.8258,3914.6,3913.6,2.55518]
[1734304760991,0.8258,3914.6,3913.1,2.55551]
[1734304760992,0.8258,3914.6,3913.2,3.0]
[1734304761178,0.8258,3914.6,3913.5,0.55]
[1734304761388,0.02401105,3914.5,3913.5,2.55524]
[1734304761586,0.02401105,3914.5,3913.3,0.55]
[1734304761782,0.8258,3914.6,3913.5,0.55]
[1734304761987,0.02399035,3914.4,3913.5,0.55]
[1734304762296,1.163829,3914.6,3913.5,0.55]
[1734304762499,0.02396965,3914.3,3913.5,0.55]
[1734304762800,1.163829,3914.6,3913.5,0.55]
[1734304762801,0.02394895,3914.2,3913.5,0.55]
[1734304762956,1.163829,3914.6,3913.5,0.55]
[1734304763154,1.163829,3914.6,3913.5,0.9160861]
[1734304763360,0.8258,3914.6,3913.5,3.10522]
[1734304763858,0.02401105,3914.5,3913.5,3.10522]
[1734304764531,0.02401105,3914.5,3913.5,0.55]
[1734304764814,0.02401105,3914.5,3913.7,2.55506]
[1734304765128,0.02401105,3914.5,3913.8,0.255506]
[1734304765271,0.02401105,3914.5,3914.0,2.55493]
[1734304765474,0.03395083,3914.5,3914.2,2.55477]
[1734304765820,0.8258,3914.6,3914.3,0.25803148]
[1734304766613,0.8258,3914.6,3913.9,0.55]
[1734304766812,0.8258,3914.6,3914.1,3.10484]
[1734304767013,0.8258,3914.6,3914.3,0.55]
[1734304767833,0.8258,3914.6,3914.1,0.55]
[1734304768418,0.03749581,3914.5,3914.1,0.55]
[1734304768618,0.8258,3914.6,3914.3,0.55]
[1734304769276,0.03749581,3914.5,3914.3,0.55]
[1734304769515,0.8258,3914.6,3914.3,0.55]
[1734304770084,0.8035,3915.1,3914.4,0.02554408]
[1734304770284,0.8035,3915.7,3914.8,0.55]
[1734304770485,2.55388,3915.6,3914.6,0.55]
[1734304770686,0.8035,3915.7,3914.6,0.55]
[1734304771483,0.8035,3915.7,3914.8,0.55]
[1734304771691,0.8035,3915.7,3914.7,2.57999825]
[1734304771931,0.8035,3915.7,3914.9,1.3582]
[1734304773834,0.1631169,3915.8,3915.1,0.55]
[1734304774536,0.1631169,3915.8,3915.1,3.55]
[1734304774838,0.1631169,3915.8,3914.5,0.7688]
[1734304775001,0.1631169,3915.8,3914.0,8.89]
[1734304775002,0.787,3915.2,3913.9,0.7688]
[1734304775198,2.55435,3914.9,3913.6,3.47552856]
[1734304775541,0.787,3915.2,3913.6,3.47552856]
[1734304775542,3.34123,3915.1,3913.7,0.35990741]
[1734304776032,0.787,3914.5,3913.7,0.35990741]
[1734304776234,0.787,3914.5,3913.3,0.1267049]
[1734304776895,0.80948311,3914.5,3913.3,0.1267049]
[1734304777244,2.55394,3915.6,3912.4,0.7688]
[1734304777245,0.787,3914.0,3912.4,0.7688]
[1734304777535,2.55423,3915.1,3912.5,0.34755286]
[1734304777536,0.787,3913.6,3912.5,0.34755286]
[1734304778091,0.787,3914.3,3912.8,2.70672856]
[1734304778337,0.787,3914.3,3913.6,2.55517]
[1734304778540,0.787,3914.3,3913.7,1.105517]
[1734304778705,0.787,3914.3,3913.7,3.660607]
[1734304778911,2.55419,3915.2,3913.7,3.660607]
[1734304778912,0.787,3915.1,3913.9,0.55]
[1734304779135,0.787,3915.1,3914.0,0.7979407]
[1734304780054,0.787,3915.1,3914.1,0.55]
[1734304780216,0.787,3915.1,3914.4,0.55]
[1734304780417,0.787,3915.1,3914.1,3.0]
[1734304781230,0.787,3915.1,3914.2,3.0]
[1734304781447,0.787,3915.1,3914.3,0.94576607]
[1734304782252,0.7782,3915.3,3912.9,0.7827]
[1734304782468,2.55456,3914.6,3913.1,2.55547]
[1734304782758,2.7168969,3915.8,3912.9,3.80824672]
[1734304782759,2.55482,3914.2,3912.9,0.7827]
[1734304783059,0.80068311,3914.1,3912.6,0.12666661]
[1734304783228,0.7782,3913.7,3912.6,0.12666661]
[1734304784367,3.33333,3913.7,3912.6,0.12666661]
[1734304784522,3.33333,3913.7,3912.7,0.55]
[1734304784523,0.7782,3913.7,3912.7,0.55]
[1734304784725,0.7782,3913.7,3912.8,0.14593666]
[1734304785225,0.7782,3913.7,3912.7,0.55]
[1734304786266,3.33334,3913.7,3912.7,0.55]
[1734304786469,3.33334,3913.7,3912.0,0.8123]
[1734304786470,0.02248311,3913.6,3912.0,0.8123]
[1734304786680,2.55574,3912.8,3911.7,0.8123]
[1734304786863,0.83278311,3912.7,3911.4,2.58659]
[1734304787185,0.02248311,3912.6,3911.5,0.61056186]
[1734304787387,2.55605,3912.3,3911.3,0.8123]
[1734304787551,0.02248311,3912.6,3911.3,0.8123]
[1734304787871,0.8103,3912.7,3911.3,3.36896]
[1734304788239,2.55592,3912.5,3911.3,0.34952697]
[1734304788431,0.8103,3912.4,3910.8,0.8123]
[1734304788635,0.8103,3912.4,3911.2,2.55674]
[1734304788837,0.8103,3912.4,3911.3,3.0]
[1734304789060,0.8103,3912.4,3910.8,0.8123]
[1734304789061,2.55608,3912.3,3911.4,0.3]
[1734304789305,2.55608,3912.3,3910.8,3.8123]
[1734304789776,0.8103,3912.4,3910.8,3.8123]
[1734304790011,0.8103,3912.2,3910.5,0.1250581]
[1734304790276,2.55664,3911.4,3910.4,0.8123]
[1734304790482,2.55664,3911.4,3910.2,2.70672856]
[1734304790693,0.8103,3911.7,3910.3,2.82800286]
[1734304790694,3.36677,3911.7,3910.3,2.82800286]
[1734304790842,3.36677,3911.7,3910.3,0.27067286]
[1734304790843,2.55666,3911.4,3910.3,0.27067286]
[1734304791040,0.02248311,3911.3,3910.3,0.27067286]
[1734304791365,2.55662,3911.4,3909.9,0.39902509]
[1734304791688,0.8238,3911.5,3909.9,0.39902509]
[1734304791871,0.8238,3911.5,3910.2,2.70672856]
[1734304792074,0.8238,3911.5,3910.7,2.70672856]
[1734304792258,0.8238,3911.9,3910.8,0.02556682]
[1734304792588,0.8238,3912.6,3911.3,3.37388]
[1734304792943,0.8238,3912.6,3911.4,2.55658]
[1734304793246,0.8238,3912.6,3911.5,0.02556215]
[1734304793482,0.8238,3912.6,3911.3,3.52392856]
[1734304793483,0.8238,3912.6,3911.4,3.55]
[1734304793665,0.8238,3912.6,3911.5,0.70739286]
[1734304793983,0.02248311,3913.5,3912.0,2.55617]
[1734304793984,0.8238,3913.4,3912.0,2.55617]
[1734304794139,3.37917,3913.4,3912.0,2.55617]
[1734304794343,3.717087,3913.4,3912.1,2.811757]
[1734304794538,3.717087,3913.4,3912.2,2.55609]
[1734304794539,0.8238,3913.4,3912.2,2.55609]
[1734304794784,0.8238,3913.4,3912.4,0.55]
[1734304794946,0.8238,3913.4,3912.6,0.55]
[1734304795145,0.8238,3913.4,3912.5,0.62822854]
[1734304795420,0.8238,3913.4,3911.9,3.0]
[1734304795554,0.8238,3913.4,3912.1,0.55]
[1734304796260,0.8238,3913.4,3912.4,3.0]
[1734304797082,0.8238,3913.4,3912.1,0.55]
[1734304797471,0.8238,3913.4,3912.1,3.55]
[1734304797653,3.37913,3913.4,3912.2,0.988601]
[1734304797853,0.8238,3913.4,3912.2,0.988601]
[1734304798082,0.8238,3913.4,3912.1,0.55]
[1734304799309,0.8238,3913.4,3912.8,2.55565]
[1734304799959,0.8238,3913.4,3912.4,3.55]
[1734304800159,0.8238,3913.4,3912.3,2.70672856]
[1734304800160,0.8238,3913.4,3912.7,3.0]
[1734304800370,0.8238,3913.4,3912.2,0.13014793]
[1734304800565,0.8238,3913.4,3912.0,0.7798]
[1734304800566,0.8238,3913.4,3912.1,3.0]
[1734304800773,0.8238,3913.4,3912.2,0.633602]
[1734304801461,0.8238,3913.4,3912.3,0.55]
[1734304801679,0.8238,3913.4,3912.7,2.55575]
[1734304801989,0.8238,3913.4,3912.4,2.55595]
[1734304802190,0.8238,3913.4,3912.6,0.55]
[1734304802344,0.8238,3913.4,3912.7,2.55573]
[1734304802549,0.8113,3914.2,3912.8,0.82295308]
[1734304802772,0.8113,3914.2,3912.9,0.55]
[1734304802975,0.8113,3914.2,3913.1,2.55548]
[1734304803158,0.8113,3914.2,3913.2,0.02555115]
[1734304803358,0.8113,3914.2,3912.9,3.55]
[1734304803559,0.8113,3914.2,3912.9,0.55]
[1734304803760,0.8113,3914.2,3913.0,3.72795507]
[1734304804190,0.8113,3914.2,3913.1,0.02555037]
[1734304804487,0.8113,3914.2,3913.6,2.55518]
[1734304805279,0.8113,3914.2,3913.1,0.55]
[1734304805280,0.8224,3915.2,3913.9,2.55498]
[1734304805541,2.891871,3915.1,3913.8,0.55]
[1734304805685,0.8224,3915.2,3913.8,3.10505]
[1734304806292,3.37656,3915.2,3913.9,3.0]
[1734304806493,2.55431,3915.0,3913.4,0.55]
[1734304806703,0.8224,3915.2,3913.8,2.55504]
[1734304806903,0.8224,3915.2,3914.0,3.55]
[1734304807404,0.8224,3915.2,3913.5,0.62567286]
[1734304807405,0.02248311,3915.1,3913.5,0.62567286]
[1734304807739,2.55473,3914.4,3912.9,3.38589]
[1734304807912,0.8139,3914.5,3912.8,0.22542209]
[1734304808235,0.02248311,3914.7,3912.8,2.55569]
[1734304808236,0.8139,3914.2,3912.8,2.55569]
[1734304808448,3.3687,3914.2,3912.8,2.55569]
[1734304808797,3.3687,3914.2,3912.5,0.8303]
[1734304808798,0.8139,3914.2,3912.7,2.70672856]
[1734304809030,0.8139,3914.2,3912.9,0.13023845]
[1734304809238,0.8139,3914.2,3913.5,0.55]
[1734304809409,0.8139,3914.2,3913.5,3.10524]
[1734304809930,0.8139,3914.2,3913.0,0.55]
[1734304810111,0.8181,3914.6,3914.0,0.55]
[1734304810327,0.8181,3914.6,3914.0,3.10491]
[1734304810520,0.8181,3914.6,3914.1,2.55484]
[1734304810836,0.7928,3915.4,3914.1,2.55484]
[1734304811013,1.0482,3915.4,3914.1,2.55484]
[1734304811211,1.0482,3915.4,3914.3,3.10469]
[1734304811412,1.0482,3915.4,3913.8,5.55502]
[1734304811413,0.02248311,3915.3,3913.8,5.55502]
[1734304811639,0.02248311,3915.3,3913.9,0.90914486]
[1734304811811,2.55408,3915.3,3914.0,0.55]
[1734304811999,2.55408,3915.3,3914.1,3.0]
[1734304812350,2.55408,3915.3,3913.7,3.53642856]
[1734304812351,0.8314,3914.9,3913.7,0.8297]
[1734304812500,0.02248311,3914.8,3913.4,0.55]
[1734304812700,2.55448,3914.7,3913.6,0.55]
[1734304813038,0.8314,3914.9,3913.6,0.55]
[1734304813245,0.8314,3914.9,3913.9,3.0]
[1734304813743,0.8314,3914.9,3913.5,0.70803286]
[1734304813744,0.8314,3914.9,3914.0,3.10492]
[1734304814620,0.8314,3914.9,3913.8,3.55]
[1734304814940,3.37576,3914.9,3913.7,0.55]
[1734304815739,0.8214,3914.9,3913.8,3.0]
[1734304815903,0.8214,3914.9,3913.9,1.19098919]
[1734304816301,2.55443,3914.8,3913.9,1.19098919]
[1734304816503,2.55443,3914.8,3913.7,0.55]
[1734304816504,2.55447,3914.7,3913.7,0.55]
[1734304816943,0.02248311,3914.8,3913.7,0.55]
[1734304817298,3.37574,3914.9,3913.7,0.55]
[1734304817557,2.55441,3914.8,3913.7,0.55]
[1734304818349,0.8214,3914.9,3913.7,0.55]
[1734304818642,1.16121831,3914.9,3913.7,0.55]
[1734304818844,1.16121831,3914.9,3913.8,3.0]
[1734304819060,0.8214,3914.9,3913.7,0.67698955]
[1734304819205,0.8214,3914.9,3914.0,3.10492]
[1734304820621,2.55474,3914.3,3913.1,8.89]
[1734304820826,3.38621311,3914.2,3912.9,1.42013379]
[1734304821031,3.38621311,3914.2,3912.9,0.7988]
[1734304821032,0.8079,3914.2,3912.9,0.7988]
[1734304821161,0.8079,3914.2,3913.0,2.55554]
[1734304821667,0.8079,3914.2,3913.5,2.55522]
[1734304822077,0.8079,3914.2,3913.1,3.0]
[1734304822385,0.8079,3914.2,3913.2,0.62137214]
[1734304822707,0.8079,3914.2,3913.3,0.55]
[1734304823114,0.8079,3914.2,3913.2,0.62137214]
[1734304823315,0.02248311,3914.1,3912.6,3.0]
[1734304823548,0.02248311,3914.1,3912.5,0.7988]
[1734304823549,2.55491,3914.1,3912.7,0.93074637]
[1734304823676,2.55497,3914.0,3912.6,2.55584]
[1734304823882,2.55497,3914.0,3912.7,3.1282778]
[1734304824120,0.25,3915.3,3912.7,3.1282778]
[1734304824121,0.7545,3915.6,3913.0,2.70672856]
[1734304824344,4.91935625,3916.0,3912.8,0.02555292]
[1734304824345,2.55409,3915.3,3913.5,2.70672856]
[1734304824494,2.55409,3915.3,3913.6,3.0]
[1734304824703,2.55409,3915.3,3913.7,0.55]
[1734304824930,2.55409,3915.3,3913.9,0.55]
[1734304825084,2.55416,3915.2,3913.9,0.55]
[1734304825285,2.57664311,3915.2,3913.9,0.55]
[1734304825481,2.55416,3915.2,3913.9,0.55]
[1734304825793,0.7545,3915.4,3913.9,0.55]
[1734304826335,2.55415,3915.2,3913.9,0.55]
[1734304826499,2.55415,3915.2,3914.0,0.37307129]
[1734304826888,0.7545,3914.9,3914.0,0.37307129]
[1734304827193,0.7545,3914.9,3913.9,0.55]
[1734304827394,0.7545,3914.9,3913.8,3.10505]
[1734304827707,0.7535,3914.9,3914.0,0.55]
[1734304828099,0.7535,3914.9,3914.1,2.865338]
[1734304828301,0.1631169,3915.8,3914.5,0.55]
[1734304828622,0.1631169,3915.8,3915.1,2.5542]
[1734304828820,0.1631169,3915.8,3914.9,0.55]
[1734304829025,0.1631169,3915.8,3915.1,0.55]
[1734304830332,0.02248311,3916.6,3915.1,0.55]
[1734304830544,0.77698311,3917.9,3916.8,2.55304]
[1734304830732,0.7545,3917.9,3916.6,2.70672856]
[1734304830884,0.7545,3917.9,3916.9,0.37597475]
[1734304831587,0.7545,3917.9,3916.6,0.7698]
[1734304831807,0.02248311,3917.8,3916.2,0.7698]
[1734304831987,0.7545,3917.9,3916.3,0.91548184]
[1734304832193,0.7545,3917.9,3916.7,3.0]
[1734304832388,0.7545,3917.9,3916.7,5.55311]
[1734304832687,0.7545,3917.9,3917.0,2.55294]
[1734304832688,0.05278314,3917.8,3917.0,2.55294]
[1734304832886,0.7545,3917.9,3917.1,2.83625035]
[1734304833111,2.70672856,3920.0,3917.1,2.83625035]
[1734304833112,0.7545,3918.4,3917.1,1.05317035]
[1734304833429,3.23578737,3919.7,3917.1,1.05317035]
[1734304833430,0.7545,3919.6,3917.8,2.55241]
[1734304833586,0.1631169,3919.7,3918.0,2.55232]
[1734304833925,0.1631169,3919.7,3918.3,2.55209]
[1734304834126,0.1631169,3919.7,3918.1,0.40149066]
[1734304834344,0.1631169,3919.7,3918.4,0.7676]
[1734304834622,0.1631169,3919.7,3919.6,3.31888]
[1734304835046,0.1631169,3919.7,3919.6,3.72035886]
[1734304835549,0.00577719,3921.0,3920.1,2.55095]
[1734304835777,0.00577719,3921.0,3920.2,0.28059622]
[1734304836071,0.00577719,3921.0,3919.7,0.02550122]
[1734304836241,0.00577719,3921.0,3919.7,2.73223065]
[1734304836444,0.00577719,3921.0,3920.4,2.55072]
[1734304836656,0.00577719,3921.0,3920.5,0.03177206]
[1734304836863,0.005,3923.0,3921.9,3.47432856]
[1734304837187,14.56863017,3925.2,3922.5,0.7676]
[1734304837188,0.00309267,3924.8,3922.5,0.7676]
[1734304837347,0.00309267,3924.8,3924.4,2.54813]
[1734304837532,0.00309267,3924.8,3924.7,2.70672856]
[1734304837737,0.00309267,3924.8,3924.7,2.97740142]
[1734304837946,0.00309267,3924.8,3924.7,3.74500142]
[1734304838234,0.00309267,3924.8,3924.7,3.19500142]
[1734304838443,14.259398,3927.0,3924.8,3.7676]
[1734304838640,14.259398,3927.0,3925.9,2.54714]
[1734304838841,14.259398,3927.0,3925.7,0.7676]
[1734304838842,2.35696156,3926.4,3926.0,17.803008]
[1734304839087,2.35696156,3926.4,3925.8,0.34743286]
[1734304839284,1.60055436,3926.4,3925.7,3.47432856]